[Event "1000GM Winter GM Norm-2 2024"]
[Site "Sunnyvale/"]
[Date "2024.01.05"]
[Round "4.8"]
[White "Xu, Yi"]
[Black "Sathish, Pranav"]
[Result "1/2-1/2"]
[ECO "C54"]
[WhiteElo "2511"]
[BlackElo "2357"]
[Annotator "TA"]
[PlyCount "51"]
[EventDate "2023.12.14"]
[EventType "schev"]
[EventCountry "USA"]
[SourceTitle "playchess.com"]
[Source "ChessBase"]
[SourceQuality "1"]
[TimeControl "5400+30"]

{[%evp 10,51,15,17,27,6,7,14,7,8,13,5,13,6,18,19,26,31,26,25,39,44,39,35,58,29,37,30,31,20,45,33,38,47,40,16,56,52,45,26,55,60,61,56]} 1. e4 {[%emt 0:02:03]} e5 {[%emt 0:00:00]} 2. Nf3 {[%emt 0:00:11]} Nc6 {[%emt 0:00:02]} 3. Bc4 {[%emt 0:00:07]} Bc5 {[%emt 0:00:04]} 4. O-O {[%emt 0:00:09]} Nf6 {[%emt 0:00:01]} 5. d3 {[%emt 0:00:07]} d6 {[%emt 0:00:03]} 6. c3 {[%emt 0:00:07]} a5 {[%emt 0:00:01] C54: Giuoco Piano: 4 c3 Nf6, main lines with 5 d4 and 5 d3.} 7. Re1 {[%emt 0:00:36]} (7. Bg5 $5 {[%cal Rd3d4]}) 7... O-O {[%emt 0:00:07]} 8. h3 {[%emt 0:00:26]} h6 {[%emt 0:00:56] The position is equal.} 9. Bb3 {[%emt 0:01:20]} Be6 {[%emt 0:03:12]} 10. Ba4 {[%emt 0:01:15]} Ba7 {[%emt 0:08:30]} 11. Nbd2 {[%emt 0:03:36][%cal Bb1d2,Bd2f1,Bf1g3][%mdl 32]} Ne7 {[%emt 0:01:02]} (11... Rb8 $5 {[%cal Rb7b5]}) 12. d4 {[%emt 0:03:20]} Ng6 {[%emt 0:02:56]} 13. Bc2 {[%emt 0:01:57]} c6 {[%emt 0:01:37]} 14. Nf1 {[%emt 0:03:06]} Qc7 {[%emt 0:09:52]} 15. Be3 {[%emt 0:13:24]} Rad8 {[%emt 0:07:14]} 16. Ng3 {[%emt 0:04:01] [#]} Bb8 $146 {[%emt 0:07:38]} ({Predecessor:} 16... b5 17. a4 b4 18. Qc1 c5 19. d5 Bc8 20. c4 Kh7 21. Nf5 Ng8 22. Kh2 f6 {1-0 Giri,A (2752)-Robson,R (2696) Saint Louis Blitz 2023 (3)}) 17. Qc1 {[%emt 0:24:53][%cal Oe3h6] And now Bxh6! would win.} (17. Qd2 $5 {[%cal Re3h6]}) 17... Rfe8 {[%emt 0:06:04]} 18. a4 {[%emt 0:02:41]} Qd7 {[%emt 0:08:07]} 19. Bd3 {[%emt 0:02:13]} Qe7 {[%emt 0:04:06]} (19... d5 {seems wilder.} 20. exd5 Nxd5 21. Bxg6 Nxe3 22. Qxe3 exd4 23. Nxd4 Bd5) 20. Qc2 {[%emt 0:04:23]} Nf4 {[%emt 0:04:49]} 21. Bxf4 {[%emt 0:02:04]} exf4 {[%emt 0:00:23]} 22. Nf1 {[%emt 0:00:17]} Nh5 {[%emt 0:02:43]} 23. Rad1 {[%emt 0:02:37]} Nf6 {[%emt 0:02:29]} 24. N1h2 {[%emt 0:00:36]} d5 {[%emt 0:01:40]} 25. e5 {[%emt 0:01:41]} Nd7 {[%emt 0:00:03]} 26. Rb1 {[%emt 0:07:54] Weighted Error Value: White=0.05 (flawless) /Black=0.08 (flawless)} 1/2-1/2

[Event "1000GM Winter GM Norm-2 2024"]
[Site "Sunnyvale/"]
[Date "2024.01.04"]
[Round "4.8"]
[White "Liu, Eric"]
[Black "Galyas, Miklos"]
[Result "*"]
[ECO "C54"]
[WhiteElo "2332"]
[BlackElo "2423"]
[Annotator "RC"]
[PlyCount "23"]
[EventDate "2023.12.14"]
[EventType "schev"]
[EventCountry "USA"]
[SourceTitle "playchess.com"]
[Source "ChessBase"]
[SourceQuality "1"]
[TimeControl "5400+30"]

1. e4 {[%emt 0:02:03]} e5 {[%emt 0:00:00]} 2. Nf3 {[%emt 0:00:11]} Nc6 {[%emt 0:00:02]} 3. Bc4 {[%emt 0:00:07]} Bc5 {[%emt 0:00:04]} 4. O-O {[%emt 1:30:09]} Nf6 {[%emt 0:00:01]} 5. d3 {[%emt 0:00:07]} d6 {[%emt 0:00:03]} 6. c3 {[%emt 0:00:07]} a5 {[%emt 0:00:01]} 7. Re1 {[%emt 0:00:36]} O-O {[%emt 0:00:07]} 8. h3 {[%emt 0:00:26]} h6 {[%emt 0:00:56]} 9. Bb3 {[%emt 0:01:20]} Be6 {[%emt 1:33:46]} 10. Ba4 {[%emt 1:30:24]} Ba7 {[%emt 0:08:30]} 11. Nbd2 {[%emt 0:03:36]} Ne7 {[%emt 0:01:02]} 12. d4 {[%emt 0:03:20]} *

[Event "1000GM Winter GM Norm-2 2024"]
[Site "Sunnyvale/"]
[Date "2024.01.04"]
[Round "4.9"]
[White "Delgado Ramirez, Neuris"]
[Black "Nathan, Nitish"]
[Result "1-0"]
[ECO "B32"]
[WhiteElo "2517"]
[BlackElo "2190"]
[Annotator "TA"]
[PlyCount "85"]
[EventDate "2023.12.14"]
[EventType "schev"]
[EventCountry "USA"]
[SourceTitle "playchess.com"]
[Source "ChessBase"]
[SourceQuality "1"]
[TimeControl "5400+30"]

{[%evp 11,85,26,34,31,33,30,33,28,22,19,26,23,29,29,29,21,35,35,36,42,46,0,26,26,54,53,56,47,56,58,88,47,70,63,63,47,160,164,158,82,89,55,157,159,159,116,217,199,377,253,261,253,253,191,753,734,734,692,694,660,545,475,841,816,1190,1225,12831,12831,12837,12837,12839,12838,12840,12840,12839,12839]} 1. e4 {[%emt 0:04:06]} c5 {[%emt 0:00:06]} 2. Nf3 {[%emt 0:00:05][%cal Bg1f3,Bf3d4,Bd4b5,Bb5c3,Bc3d5][%mdl 32]} Nc6 {[%emt 0:00:07]} 3. d4 {[%emt 0:00:16]} cxd4 {[%emt 0:00:24]} 4. Nxd4 {[%emt 0:00:05]} e5 {[%emt 0:00:39]} 5. Nb5 {[%emt 0:00:05]} d6 {[%emt 0:00:10]} 6. c4 {[%emt 0:00:03]} Be7 {[%emt 0:00:14] 6...g6 deserves study.} 7. N5c3 {[%emt 0:00:07] B32: Sicilian: Löwenthal and Kalashnikov Variations.} Nf6 {[%emt 0:01:26][%cal Bg8f6,Bf6d7,Bd7c5,Bc5d3][%mdl 32]} 8. Bd3 {[%emt 0:00:42]} O-O {[%emt 0:00:40]} 9. O-O {[%emt 0:00:07] White is slightly better.} Nd7 {[%emt 0:02:02]} 10. Nd5 {[%emt 0:00:27]} Bg5 {[%emt 0:02:19]} 11. Nbc3 {[%emt 0:00:13]} Bxc1 {[%emt 0:02:35]} 12. Rxc1 {[%emt 0:00:11]} Nc5 {[%emt 0:01:10]} 13. b4 {[%emt 0:00:18] [#]} Nxd3 $146 {[%emt 0:10:13]} ({Predecessor:} 13... Ne6 14. Bb1 a5 15. a3 axb4 16. axb4 Ncd4 17. Kh1 Qg5 18. g3 Qd8 19. f4 Nc7 {½-½ Das,A (2451)-Shariyazdanov,A (2519) Seville op 45th 2020 (8)}) 14. Qxd3 {[%emt 0:00:06]} Be6 {[%emt 0:01:23]} 15. a3 {[%emt 0:02:38]} (15. Rfd1 {seems wilder.} Qh4 16. f3 Rad8 17. b5) 15... a6 {[%emt 0:06:07] Against Nb5} 16. Na4 {[%emt 0:03:55]} (16. Ne2 $14 {deserves consideration.}) 16... Nd4 {[%emt 0:08:07]} 17. Nab6 {[%emt 1:25:36] Excellent horsemanship.} Rb8 {[%emt 1:01:18]} 18. f4 {[%emt 0:00:30]} Bxd5 {[%emt 0:00:00]} 19. Nxd5 {[%emt 0:00:00]} f6 {[%emt 0:00:00]} 20. f5 {[%emt 0:00:00]} Kh8 {[%emt 0:00:00]} 21. Kh1 {[%emt 0:00:00] White is more active.} Rc8 {[%emt 0:00:00]} 22. a4 {[%emt 0:00:00]} a5 {[%emt 0:00:00]} 23. bxa5 {[%emt 0:00:00]} Qxa5 {[%emt 0:00:00] [#]} (23... Rf7 $14) 24. Ne7 $1 $16 {[%emt 0:00:00]} Qxa4 {[%emt 0:00:00]} 25. Nxc8 {[%emt 0:00:00]} ({White should try} 25. Ng6+ Kg8 26. Nxf8 Rxf8 27. Rb1) 25... Rxc8 {[%emt 0:00:00]} 26. Ra1 {[%emt 0:00:00]} Qc6 {[%emt 0:00:00]} ({Better is} 26... Qb3 $1 $14 27. Qxb3 Nxb3) 27. Rfb1 {[%emt 0:00:00]} h6 {[%emt 0:00:00]} 28. h3 {[%emt 0:00:00]} Rc7 {[%emt 0:00:00]} (28... Rb8 $16 {keeps fighting.} 29. Kh2 Kg8) 29. Ra8+ {[%emt 0:00:00]} Kh7 $2 {[%emt 0:00:00]} (29... Rc8 30. Rxc8+ Qxc8) 30. Qg3 {[%emt 0:00:00][%csl Gf5][%cal Rg3g6] [#]} Rc8 {[%emt 0:00:00]} 31. Rxc8 {[%emt 0:00:00]} Qxc8 $18 {[%emt 0:00:00][%mdl 4096] Endgame KQR-KQN} 32. Ra1 $40 {[%emt 0:00:00][%mdl 128] White is out for blood.} b5 $2 {[%emt 0:00:00]} (32... Ne2 33. Qg6+ Kg8) 33. Ra7 {[%emt 0:00:00][%csl Ga7][%cal Rg3g7] White is clearly winning.} Qf8 {[%emt 0:00:00]} 34. cxb5 {[%emt 0:00:00]} Nxb5 {[%emt 0:08:30]} 35. Rd7 {[%emt 0:08:30]} Nd4 {[%emt 0:00:00]} 36. Kh2 {[%emt 0:00:00] Qg6+ would be deadly.} Kg8 {[%emt 0:00:00]} (36... Ne2 $142 37. Qb3 d5) 37. Qc3 {[%emt 0:00:00] Strongly threatening Qc7.} Kh7 {[%emt 0:00:00]} 38. Qc7 {[%emt 0:00:00]} Nb5 {[%emt 0:02:00]} 39. Qb6 {[%emt 0:02:00]} Nd4 {[%emt 0:00:00]} 40. Rd8 {[%emt 0:00:00]} Qf7 {[%emt 0:00:00]} 41. Qb8 {[%emt 0:00:00][%csl Gb8][%cal Rd8h8]} ({Inferior is} 41. Rxd6 Qa2 $11) 41... g6 {[%emt 0:00:00]} 42. Rf8 {[%emt 0:00:00][%cal Rf8f7]} Qg7 {[%emt 0:00:00]} 43. fxg6+ {[%emt 0:00:00] Weighted Error Value: White=0.22 (precise) /Black=0.33} 1-0

[Event "1000GM Winter GM Norm-2 2024"]
[Site "Sunnyvale/"]
[Date "2024.01.05"]
[Round "5.1"]
[White "Rajaram, Rohan"]
[Black "Mosquera, Miguel"]
[Result "0-1"]
[ECO "D45"]
[WhiteElo "2151"]
[BlackElo "2365"]
[Annotator "RC"]
[PlyCount "74"]
[EventDate "2023.12.14"]
[EventType "schev"]
[EventCountry "USA"]
[SourceTitle "playchess.com"]
[Source "ChessBase"]
[SourceQuality "1"]
[TimeControl "5400+30"]

1. d4 {[%emt 0:03:13]} d5 {[%emt 0:00:28]} 2. c4 {[%emt 1:28:17]} c6 {[%emt 0:00:05]} 3. Nf3 {[%emt 0:00:00]} Nf6 {[%emt 0:00:07]} 4. Qb3 {[%emt 0:00:00]} e6 {[%emt 0:00:08]} 5. Nc3 {[%emt 0:01:30]} Nbd7 {[%emt 0:01:37]} 6. e3 {[%emt 0:00:30]} Bd6 {[%emt 0:01:27]} 7. Bd3 {[%emt 0:00:00]} O-O {[%emt 0:00:32]} 8. O-O {[%emt 0:00:00]} dxc4 {[%emt 0:04:33]} 9. Bxc4 {[%emt 0:00:00]} e5 {[%emt 0:01:16]} 10. dxe5 {[%emt 0:00:00]} Nxe5 {[%emt 1:25:17]} 11. Nxe5 {[%emt 0:00:00]} Bxe5 {[%emt 0:00:00]} 12. h3 {[%emt 0:00:00]} Qe7 {[%emt 0:00:00]} 13. Bd2 {[%emt 0:00:00]} Rd8 {[%emt 0:00:00]} 14. Rad1 {[%emt 0:00:00]} Bf5 {[%emt 0:00:00]} 15. Rfe1 {[%emt 0:00:00]} b5 {[%emt 0:00:00]} 16. Be2 {[%emt 0:00:00]} Qc5 {[%emt 0:00:00]} 17. a3 {[%emt 0:00:00]} a5 {[%emt 0:00:00]} 18. Rc1 {[%emt 0:00:00]} Rxd2 {[%emt 0:00:00]} 19. Ne4 {[%emt 0:00:00]} Nxe4 {[%emt 0:00:00]} 20. Rxc5 {[%emt 0:00:00]} Nxc5 {[%emt 0:00:00]} 21. Qa2 {[%emt 0:00:00]} Rad8 {[%emt 0:00:00]} 22. Qa1 {[%emt 0:00:00]} Bxb2 {[%emt 0:00:00]} 23. Qa2 {[%emt 0:00:00]} Bf6 {[%emt 0:00:00]} 24. Qxd2 {[%emt 0:00:00]} Rxd2 {[%emt 0:00:00]} 25. Bf3 {[%emt 0:00:00]} Be4 {[%emt 0:00:00]} 26. Bxe4 {[%emt 0:00:00]} Nxe4 {[%emt 0:00:00]} 27. Rf1 {[%emt 0:00:00]} c5 {[%emt 0:00:00]} 28. Rb1 {[%emt 0:00:00]} Nc3 {[%emt 0:00:00]} 29. Rf1 {[%emt 0:00:00]} a4 {[%emt 0:00:00]} 30. Kh1 {[%emt 0:00:00]} b4 {[%emt 0:00:00]} 31. axb4 {[%emt 0:00:00]} cxb4 {[%emt 0:00:00]} 32. f4 {[%emt 0:00:00]} b3 {[%emt 0:00:00]} 33. Kg1 {[%emt 0:00:00]} b2 {[%emt 0:00:00]} 34. Kh1 {[%emt 0:00:00]} a3 {[%emt 0:00:00]} 35. Kg1 {[%emt 0:00:00]} a2 {[%emt 0:00:00]} 36. Kh1 {[%emt 0:00:00]} h5 {[%emt 0:00:00]} 37. Kg1 {[%emt 0:00:00]} a1=Q {[%emt 0:00:00]} 0-1

[Event "1000GM Winter GM Norm-2 2024"]
[Site "Sunnyvale/"]
[Date "2024.01.05"]
[Round "5.2"]
[White "Wang, Isaac"]
[Black "Miezis, Normunds"]
[Result "1/2-1/2"]
[ECO "E11"]
[WhiteElo "2316"]
[BlackElo "2419"]
[Annotator "RC"]
[PlyCount "61"]
[EventDate "2023.12.14"]
[EventType "schev"]
[EventCountry "USA"]
[SourceTitle "playchess.com"]
[Source "ChessBase"]
[SourceQuality "1"]
[TimeControl "5400+30"]

1. d4 {[%emt 0:03:08]} Nf6 {[%emt 0:00:16]} 2. c4 {[%emt 0:00:05]} e6 {[%emt 0:00:32]} 3. Nf3 {[%emt 0:00:19]} Bb4+ {[%emt 0:00:21]} 4. Bd2 {[%emt 0:00:14]} a5 {[%emt 0:00:58]} 5. g3 {[%emt 0:00:19]} d5 {[%emt 0:01:46]} 6. Qc2 {[%emt 0:00:25]} O-O {[%emt 0:01:26]} 7. Bg2 {[%emt 0:00:10]} c5 {[%emt 0:00:57]} 8. cxd5 {[%emt 0:00:28]} cxd4 {[%emt 0:00:39]} 9. Nxd4 {[%emt 0:00:15]} Qb6 {[%emt 0:03:39]} 10. e3 {[%emt 0:00:29]} exd5 {[%emt 0:12:45]} 11. O-O {[%emt 0:00:12]} Nc6 {[%emt 0:00:59]} 12. Nxc6 {[%emt 0:00:27]} bxc6 {[%emt 0:00:35]} 13. Rc1 {[%emt 0:00:24]} Bd7 {[%emt 0:05:11]} 14. Nc3 {[%emt 0:00:19]} Rfb8 {[%emt 0:01:55]} 15. Na4 {[%emt 0:02:57]} Qd8 {[%emt 0:01:18]} 16. Bxb4 {[%emt 0:01:04]} axb4 {[%emt 0:04:30]} 17. Nc5 {[%emt 0:00:43]} Be8 {[%emt 0:01:37]} 18. a3 {[%emt 0:07:51]} bxa3 {[%emt 0:01:27]} 19. bxa3 {[%emt 0:01:16]} h5 {[%emt 0:01:12]} 20. Qc3 {[%emt 0:02:10]} Qb6 {[%emt 0:07:58]} 21. a4 {[%emt 0:10:09]} Qa5 {[%emt 0:11:08]} 22. Nb3 {[%emt 0:09:10]} Qb4 {[%emt 0:02:05]} 23. Nd4 {[%emt 0:05:52]} Rxa4 {[%emt 0:02:48]} 24. Rxa4 {[%emt 0:01:28]} Qxa4 {[%emt 0:00:09]} 25. Nxc6 {[%emt 0:00:44]} Bxc6 {[%emt 0:03:53]} 26. Qxc6 {[%emt 0:00:08]} Qxc6 {[%emt 0:00:07]} 27. Rxc6 {[%emt 0:00:05]} Rb1+ {[%emt 0:01:05]} 28. Bf1 {[%emt 0:00:05]} Rd1 {[%emt 0:02:24]} 29. Rc2 {[%emt 0:01:01]} g6 {[%emt 0:00:43]} 30. Kg2 {[%emt 0:00:27]} Kg7 {[%emt 0:00:14]} 31. Be2 {[%emt 0:00:19]} 1/2-1/2

[Event "1000GM Winter GM Norm-2 2024"]
[Site "Sunnyvale/"]
[Date "2024.01.05"]
[Round "5.4"]
[White "Figueredo Losada, Leonel"]
[Black "Amburgy, Ryan"]
[Result "1-0"]
[ECO "A13"]
[WhiteElo "2381"]
[BlackElo "2200"]
[Annotator "RC"]
[PlyCount "61"]
[EventDate "2023.12.14"]
[EventType "schev"]
[EventCountry "USA"]
[SourceTitle "playchess.com"]
[Source "ChessBase"]
[SourceQuality "1"]
[TimeControl "5400+30"]

1. Nf3 {[%emt 0:00:54]} Nf6 {[%emt 0:00:07]} 2. c4 {[%emt 0:01:39]} e6 {[%emt 0:00:08]} 3. g3 {[%emt 0:00:28]} d5 {[%emt 0:00:10]} 4. Bg2 {[%emt 0:00:05]} d4 {[%emt 0:00:07]} 5. d3 {[%emt 0:00:17]} c5 {[%emt 0:00:08]} 6. e4 {[%emt 0:00:06]} Nc6 {[%emt 0:00:21]} 7. e5 {[%emt 0:00:04]} Nd7 {[%emt 0:00:05]} 8. Qe2 {[%emt 0:00:03]} b6 {[%emt 0:00:50]} 9. Ng5 {[%emt 0:00:24]} Bb7 {[%emt 0:00:07]} 10. f4 {[%emt 0:00:03]} Be7 {[%emt 0:01:28]} 11. Nf3 {[%emt 0:07:28]} Qc7 {[%emt 0:01:19]} 12. O-O {[%emt 0:00:20]} O-O {[%emt 0:03:50]} 13. Nbd2 {[%emt 0:00:51]} Rae8 {[%emt 0:00:27]} 14. Ne4 {[%emt 0:00:10]} f6 {[%emt 0:02:40]} 15. exf6 {[%emt 0:00:06]} Bxf6 {[%emt 0:00:11]} 16. Bd2 {[%emt 0:04:31]} Nd8 {[%emt 0:04:26]} 17. Rae1 {[%emt 0:10:11]} Nf7 {[%emt 0:01:43]} 18. Bc1 {[%emt 0:02:21]} Nd6 {[%emt 0:04:02]} 19. Nxd6 {[%emt 0:00:07]} Qxd6 {[%emt 0:00:02]} 20. Nd2 {[%emt 0:00:06]} Bxg2 {[%emt 0:02:36]} 21. Qxg2 {[%emt 0:00:05]} g6 {[%emt 0:12:16]} 22. Re2 {[%emt 0:01:11]} Kh8 {[%emt 0:06:20]} 23. Rfe1 {[%emt 0:01:21]} e5 {[%emt 0:03:32]} 24. Qd5 {[%emt 0:23:06]} Qxd5 {[%emt 0:05:11]} 25. cxd5 {[%emt 0:00:01]} b5 {[%emt 0:00:08]} 26. Nf3 {[%emt 0:00:24]} Bg7 {[%emt 0:08:59]} 27. Nxe5 {[%emt 0:02:15]} Nxe5 {[%emt 0:01:31]} 28. fxe5 {[%emt 0:00:03]} c4 {[%emt 0:00:04]} 29. e6 {[%emt 0:01:10]} cxd3 {[%emt 0:00:47]} 30. Re4 {[%emt 0:00:06]} Rc8 {[%emt 0:03:20]} 31. e7 {[%emt 0:00:12]} 1-0

[Event "1000GM Winter GM Norm-2 2024"]
[Site "Sunnyvale/"]
[Date "2024.01.05"]
[Round "5.5"]
[White "Sheng, Joshua"]
[Black "Guo, Andrew"]
[Result "1-0"]
[ECO "B31"]
[WhiteElo "2461"]
[BlackElo "2255"]
[Annotator "TA"]
[PlyCount "65"]
[EventDate "2023.12.14"]
[EventType "schev"]
[EventCountry "USA"]
[SourceTitle "playchess.com"]
[Source "ChessBase"]
[SourceQuality "1"]
[TimeControl "5400+30"]

{[%evp 11,65,9,21,20,17,22,35,7,8,14,30,29,18,0,0,0,6,0,0,0,2,-17,-17,-17,-17,-17,-17,-17,-17,-33,-17,-31,-37,-28,-51,-47,-18,-7,-7,-78,-71,-97,0,0,27,40,29,30,144,146,125,113,1124,1125,1003,987]} 1. e4 {[%emt 0:02:40]} c5 {[%emt 1:31:00]} 2. Nf3 {[%emt 0:00:06]} Nc6 {[%emt 0:00:00]} 3. Bb5 {[%emt 0:00:04]} g6 {[%emt 0:00:00]} 4. Bxc6 {[%emt 0:00:02]} dxc6 {[%emt 0:00:00]} 5. d3 {[%emt 0:00:04]} Bg7 {[%emt 0:00:00]} 6. h3 {[%emt 0:00:01]} Nf6 {[%emt 0:00:00]} 7. a4 {[%emt 0:00:03] B31: Sicilian: 2...Nc6 3 Bb5 g6.} Nd7 {[%emt 0:00:00]} 8. a5 {[%emt 0:00:30]} e5 {[%emt 0:03:30]} 9. Nbd2 {[%emt 0:02:43] White is slightly better.} Nf8 {[%emt 0:00:00]} 10. Nc4 {[%emt 0:00:35]} Qc7 {[%emt 0:00:00]} 11. Be3 {[%emt 0:06:12]} Ne6 {[%emt 0:00:00]} 12. Qd2 {[%emt 0:01:26]} O-O {[%emt 0:00:00]} 13. Bh6 {[%emt 0:09:51]} f6 {[%emt 0:00:00]} 14. Bxg7 {[%emt 0:01:10]} Kxg7 {[%emt 0:00:00]} 15. O-O {[%emt 0:04:49] [#]} Nd4 $146 {[%emt 0:00:00]} ({Predecessor:} 15... Nf4 16. Kh2 Be6 17. b3 Rad8 18. Qe3 Qe7 19. Ng1 Bxc4 20. bxc4 Rd7 21. Ne2 Ne6 {½-½ Svane,R (2623)-Zhigalko,S (2572) Levitov Zhigalko-Svane m blitz 2021 (1)}) 16. Qd1 {[%emt 0:08:01]} Be6 {[%emt 0:00:00]} 17. Nfd2 {[%emt 0:02:31]} Rfd8 {[%emt 0:00:00]} 18. Ne3 {[%emt 0:05:21]} Bf7 {[%emt 0:00:00]} 19. g3 {[%emt 0:06:12]} b5 {[%emt 0:00:00][%cal Oc5c4]} 20. Kg2 {[%emt 0:06:51]} a6 {[%emt 0:00:00]} 21. f4 {[%emt 0:03:29]} exf4 {[%emt 0:00:00]} 22. Rxf4 {[%emt 0:00:12] [#]} c4 $1 {[%emt 0:00:00]} 23. dxc4 {[%emt 0:05:59]} bxc4 {[%emt 0:00:00]} (23... h5 $5 {[%cal Rd4e6]}) 24. Rf2 {[%emt 0:00:53]} (24. Ndxc4 $2 {is the wrong capture.} Ne6 25. Qf3 Nxf4+ 26. gxf4 Rd4 $19) ({Much worse is} 24. Nexc4 Bxc4 25. Nxc4 Nb3 26. cxb3 Rxd1 27. Rxd1 Rd8 $17) 24... Rab8 {[%emt 0:00:00]} 25. Qc1 {[%emt 0:08:52]} (25. Nexc4 $11 Qe7 26. Ra4) 25... Qe7 $17 {[%emt 0:00:00][%cal Of7d5]} 26. c3 {[%emt 0:01:56]} Nb3 {[%emt 0:00:00]} (26... Nb5 $17 {...Rd3 is the strong threat.} 27. Kh2 Nd6) 27. Nxb3 $11 {[%emt 0:00:03] A dynamic duo of knights.} Qxe4+ {[%emt 0:00:00]} ({Don't take} 27... Rxb3 28. Ng4 $14) 28. Kh2 $1 {[%emt 0:00:02] Black must now prevent Nd4.} Rxb3 {[%emt 0:00:00]} 29. Ng4 {[%emt 0:00:05] aiming for Qh6+.} g5 {[%emt 0:00:00]} (29... Rd6 $1 $11 {keeps the balance.}) 30. Nxf6 $16 {[%emt 0:00:34]} Qe5 {[%emt 0:00:00]} (30... Qg6 $2 31. Qe3 Kh8 32. Raf1) 31. Ng4 {[%emt 0:02:12]} Qc5 {[%emt 0:00:00][%mdl 8192] [#]} (31... Qe7 $16) 32. Rxf7+ $1 $18 {[%emt 0:04:03][%mdl 512]} Kxf7 {[%emt 0:00:00]} 33. Qf1+ {[%emt 0:00:03] Weighted Error Value: White=0.10 (very precise) /Black=0.14 (very precise)} 1-0

[Event "1000GM Winter GM Norm-2 2024"]
[Site "Sunnyvale/"]
[Date "2024.01.05"]
[Round "5.6"]
[White "Galyas, Miklos"]
[Black "Shivakumar, Shawnak"]
[Result "1/2-1/2"]
[ECO "D45"]
[WhiteElo "2423"]
[BlackElo "2307"]
[Annotator "RC"]
[PlyCount "51"]
[EventDate "2023.12.14"]
[EventType "schev"]
[EventCountry "USA"]
[SourceTitle "playchess.com"]
[Source "ChessBase"]
[SourceQuality "1"]
[TimeControl "5400+30"]

1. Nf3 {[%emt 0:02:56]} d5 {[%emt 0:07:29]} 2. e3 {[%emt 0:00:09]} Nf6 {[%emt 0:00:21]} 3. c4 {[%emt 0:00:08]} c6 {[%emt 0:00:19]} 4. Nc3 {[%emt 0:00:05]} Nbd7 {[%emt 0:00:10]} 5. cxd5 {[%emt 0:00:31]} cxd5 {[%emt 0:00:21]} 6. d4 {[%emt 0:00:11]} e6 {[%emt 0:00:19]} 7. Bd3 {[%emt 0:00:34]} a6 {[%emt 0:00:12]} 8. O-O {[%emt 0:18:06]} Bd6 {[%emt 0:01:12]} 9. Qe2 {[%emt 0:02:41]} b5 {[%emt 0:06:45]} 10. e4 {[%emt 0:02:55]} dxe4 {[%emt 0:01:03]} 11. Nxe4 {[%emt 0:00:06]} Be7 {[%emt 0:00:33]} 12. a4 {[%emt 0:06:30]} bxa4 {[%emt 0:03:35]} 13. Bg5 {[%emt 0:12:12]} Bb7 {[%emt 0:02:07]} 14. Rxa4 {[%emt 0:01:52]} Nb6 {[%emt 0:05:24]} 15. Raa1 {[%emt 0:02:14]} Nxe4 {[%emt 0:05:06]} 16. Bxe7 {[%emt 0:07:05]} Qxe7 {[%emt 0:02:01]} 17. Bxe4 {[%emt 0:00:10]} O-O {[%emt 0:00:24]} 18. Ra5 {[%emt 0:02:11]} Bxe4 {[%emt 0:04:51]} 19. Qxe4 {[%emt 0:00:11]} Nc4 {[%emt 0:00:18]} 20. Rc5 {[%emt 0:03:41]} Nxb2 {[%emt 0:10:42]} 21. Qc2 {[%emt 0:00:54]} Rab8 {[%emt 0:10:47]} 22. Rb1 {[%emt 0:06:56]} Na4 {[%emt 0:00:54]} 23. Rxb8 {[%emt 0:00:06]} Rxb8 {[%emt 0:00:13]} 24. Rc8+ {[%emt 0:00:05]} Rxc8 {[%emt 0:00:04]} 25. Qxc8+ {[%emt 0:00:06]} Qf8 {[%emt 0:00:03]} 26. Qxa6 {[%emt 0:00:07]} 1/2-1/2